bitfinex/quotes_BTCUSD_20260104
["timestamp","ask_amount","ask_price","bid_price","bid_amount"]
[1767530179117,0.06584481,91124.0,91121.0,0.00010809]
[1767530179318,0.05487144,91123.0,91121.0,0.00010809]
[1767530180159,0.05487149,91122.0,91121.0,0.00010809]
[1767530180581,0.01097405,91124.0,91121.0,0.00010809]
[1767530180762,0.01097405,91124.0,91122.0,0.01]
[1767530181123,0.01097393,91125.0,91122.0,0.01]
[1767530181562,0.06584315,91126.0,91122.0,0.01]
[1767530181979,0.06584372,91125.0,91122.0,0.01]
[1767530182319,0.01097357,91128.0,91123.0,0.05487088]
[1767530182518,0.01097164,91144.0,91137.0,0.01097249]
[1767530182825,0.06583037,91144.0,91139.0,0.01097225]
[1767530182973,0.01097164,91144.0,91139.0,0.06583292]
[1767530183175,0.11246781,91144.0,91140.0,0.01097213]
[1767530183376,0.06583067,91143.0,91139.0,0.01097225]
[1767530183562,0.11246781,91144.0,91135.0,0.21945465]
[1767530183974,0.06582896,91146.0,91140.0,0.06583276]
[1767530184946,0.01097164,91144.0,91140.0,0.06583276]
[1767530185146,0.01097152,91145.0,91141.0,0.01097201]
[1767530185323,0.06582917,91145.0,91140.0,0.06583276]
[1767530185974,0.01097164,91144.0,91140.0,0.01097213]
[1767530186142,0.05485451,91151.0,91145.0,0.0548576]
[1767530186293,0.01112152,91155.0,91146.0,0.0109714]
[1767530186492,0.01097068,91152.0,91148.0,0.01097116]
[1767530187246,0.01097068,91152.0,91145.0,0.01097152]
[1767530187247,0.10149258,91150.0,91145.0,0.01097152]
[1767530187464,0.01097104,91149.0,91144.0,0.06582931]
[1767530187603,0.01097116,91148.0,91144.0,0.01097164]
[1767530187811,0.01097116,91148.0,91143.0,0.05485882]
[1767530187812,0.06582712,91148.0,91143.0,0.01097176]
[1767530188162,0.06582712,91148.0,91141.0,0.05485892]
[1767530188163,0.01097152,91145.0,91141.0,0.01097201]
[1767530188357,0.06582902,91146.0,91141.0,0.06583196]
[1767530188558,0.01097152,91145.0,91141.0,0.01097201]
[1767530188772,0.06582902,91146.0,91141.0,0.01097201]
[1767530189405,0.05485845,91144.0,91140.0,0.02196]
[1767530189610,0.01097164,91144.0,91140.0,0.03293213]
[1767530190162,0.01097164,91144.0,91140.0,0.02196]
[1767530190380,0.05887705,91140.0,91135.0,0.01097273]
[1767530190511,0.04790492,91140.0,91136.0,0.02196]
[1767530190713,0.04790492,91163.0,91141.0,0.04661346]
[1767530190946,0.06597316,91155.0,91149.0,0.11243948]
[1767530191268,0.06597316,91155.0,91150.0,0.04661346]
[1767530191465,0.0001512,91155.0,91151.0,0.0109708]
[1767530191760,0.0001512,91155.0,91150.0,0.05758438]
[1767530191761,0.01097044,91154.0,91150.0,0.05758438]
[1767530191965,0.01097056,91153.0,91150.0,0.04661346]
[1767530192112,0.06582273,91154.0,91150.0,0.04661346]
[1767530193483,0.06582338,91153.0,91150.0,0.04661346]
[1767530194068,0.06597362,91155.0,91150.0,0.05758438]
[1767530194298,0.01097321,91131.0,91127.0,0.04767117]
[1767530194417,0.01097309,91132.0,91131.0,0.0002]
[1767530194612,0.01097309,91132.0,91117.0,0.0109749]
[1767530194613,0.01097393,91125.0,91117.0,0.0109749]
[1767530194837,0.04388364,91125.0,91120.0,0.08780722]
[1767530195101,0.01097357,91128.0,91122.0,0.01097429]
[1767530195326,0.01097333,91130.0,91126.0,0.01097381]
[1767530195473,0.01097333,91130.0,91128.0,0.00080366]
[1767530195824,0.00919634,91123.0,91120.0,0.01097453]
[1767530196023,0.00919634,91123.0,91117.0,0.02196]
[1767530196024,0.01097453,91120.0,91117.0,0.02196]
[1767530196155,0.05486787,91128.0,91117.0,0.02196]
[1767530196156,0.23043521,91132.0,91121.0,0.01097441]
[1767530196371,0.01584188,91128.0,91123.0,0.04767117]
[1767530196575,0.05486844,91129.0,91123.0,0.11351599]
[1767530196802,0.06584189,91129.0,91123.0,0.11351599]
[1767530196967,5.946e-05,91130.0,91125.0,0.06584352]
[1767530197327,5.946e-05,91130.0,91128.0,0.0548678]
[1767530197696,5.946e-05,91130.0,91129.0,0.05486727]
[1767530198413,0.01097249,91137.0,91133.0,0.01097297]
[1767530198633,0.01097164,91144.0,91138.0,0.05486159]
[1767530198922,0.01097176,91143.0,91139.0,0.01097225]
[1767530199122,0.01097176,91143.0,91138.0,0.06583396]
[1767530199314,0.01097189,91142.0,91137.0,0.06583486]
[1767530199544,0.01097189,91142.0,91138.0,0.01097237]
[1767530199699,0.01097201,91141.0,91136.0,0.01097261]
[1767530199878,0.01097116,91148.0,91136.0,0.01097261]
[1767530200081,0.01097152,91145.0,91139.0,0.01097225]
[1767530200304,0.01097152,91145.0,91141.0,0.01097201]
[1767530200619,0.04836116,91139.0,91135.0,0.03297273]
[1767530200938,0.01097213,91140.0,91136.0,0.01097261]
[1767530201140,0.10322083,91142.0,91137.0,0.01097249]
[1767530201323,0.4,91312.0,91119.0,0.022]
[1767530201324,0.01097369,91127.0,91119.0,0.022]
[1767530201542,0.01097369,91127.0,91122.0,0.01097429]
[1767530201543,0.01097381,91126.0,91122.0,0.01097429]
[1767530201745,0.01097381,91126.0,91121.0,0.05487202]
[1767530201746,0.065843,91126.0,91121.0,0.06584643]
[1767530202037,0.06584369,91125.0,91119.0,0.0769809]
[1767530202238,0.06584369,91125.0,91120.0,0.06584685]
[1767530202239,0.01097393,91125.0,91120.0,0.06584685]
[1767530202406,0.01097393,91125.0,91121.0,0.01097441]
[1767530202829,0.01097405,91124.0,91120.0,0.01097453]
[1767530203129,0.06584446,91124.0,91119.0,0.08795484]
[1767530203329,0.01097405,91124.0,91120.0,0.01097453]
[1767530203474,0.06584292,91126.0,91121.0,0.01097441]
[1767530204059,0.06584268,91127.0,91122.0,0.01097429]
[1767530204233,0.05486767,91129.0,91124.0,0.01097405]
[1767530204234,0.01097357,91128.0,91124.0,0.01097405]
[1767530204587,0.06584112,91129.0,91124.0,0.0658443]
[1767530205386,0.06584085,91129.0,91124.0,0.0658443]
[1767530205584,0.01097333,91130.0,91122.0,0.01097429]
[1767530205823,0.0658393,91131.0,91127.0,0.01097369]
[1767530206028,0.01097321,91131.0,91127.0,0.01097369]
[1767530206224,0.01097297,91133.0,91128.0,0.05486767]
[1767530206380,0.01097297,91133.0,91128.0,0.09742766]
[1767530206757,0.06583784,91133.0,91128.0,0.10840123]
[1767530206903,0.06583784,91133.0,91128.0,0.06584124]
[1767530207103,0.01097309,91132.0,91126.0,0.01097381]
[1767530207439,0.01097321,91131.0,91125.0,0.06584321]
[1767530207791,0.01097321,91131.0,91125.0,0.01097393]
[1767530208087,0.01097321,91131.0,91124.0,0.05487028]
[1767530208088,0.06583929,91131.0,91124.0,0.01097405]
[1767530208487,0.01097333,91130.0,91125.0,0.01097393]
[1767530208951,0.01097333,91130.0,91124.0,0.01097405]
[1767530209150,0.00919634,91124.0,91123.0,0.022]
[1767530209560,0.00919634,91124.0,91119.0,0.0203521]
[1767530209561,0.05933533,91123.0,91119.0,0.0203521]
[1767530209760,0.04836116,91121.0,91119.0,0.0203521]
[1767530209926,0.01097393,91125.0,91117.0,0.0109749]
[1767530210145,0.01097381,91126.0,91121.0,0.01097441]
[1767530210328,0.06584337,91127.0,91121.0,0.01097441]
[1767530210747,0.01097381,91126.0,91120.0,0.06584669]
[1767530210941,0.01097381,91126.0,91121.0,0.01097441]
[1767530211344,0.06584225,91127.0,91121.0,0.06584648]
[1767530211507,0.01097345,91129.0,91122.0,0.06584564]
[1767530211706,0.01097357,91128.0,91123.0,0.01097417]
[1767530211913,0.06584123,91129.0,91123.0,0.06584504]
[1767530212153,0.01097345,91129.0,91123.0,0.06584504]
[1767530214379,0.06583829,91133.0,91129.0,0.000809]
[1767530214581,0.05486571,91132.0,91129.0,0.000809]
[1767530214740,0.01097309,91132.0,91126.0,0.0658428]
[1767530214946,0.01097321,91131.0,91126.0,0.01097381]
[1767530215663,0.01097309,91132.0,91127.0,0.01097369]
[1767530215923,0.01097297,91133.0,91127.0,0.06584183]
[1767530216092,0.04836116,91135.0,91127.0,0.01097369]
[1767530216237,0.11419779,91135.0,91129.0,0.06584067]
[1767530216437,0.11419779,91135.0,91130.0,0.01097333]
[1767530216666,0.01097285,91134.0,91128.0,0.06584144]
[1767530217041,0.05933389,91135.0,91130.0,0.01097333]
[1767530217699,0.04836116,91135.0,91130.0,0.01097333]
[1767530218072,0.04836116,91135.0,91131.0,0.01097321]
[1767530218401,0.0001512,91137.0,91132.0,0.0548653]
[1767530218542,0.04836116,91141.0,91138.0,0.00050125]
[1767530218543,0.05933317,91141.0,91138.0,0.00050125]
[1767530218739,0.05933317,91141.0,91135.0,0.000809]
[1767530218740,0.04836116,91141.0,91137.0,0.01097249]
[1767530218993,0.04836116,91141.0,91136.0,0.01097261]
[1767530219492,0.04836116,91139.0,91136.0,0.01097261]
[1767530219703,0.01097164,91144.0,91139.0,0.00146146]
[1767530219857,0.05485936,91143.0,91139.0,0.00146146]
[1767530220065,0.01097176,91143.0,91138.0,0.01097237]
[1767530220406,0.01097176,91143.0,91137.0,0.06583476]
[1767530220584,0.00019,91137.0,91134.0,0.06583674]
[1767530220773,0.05486307,91136.0,91130.0,0.01097333]
[1767530220943,0.00934754,91134.0,91132.0,0.05486493]
[1767530221120,0.06583408,91139.0,91132.0,0.01097309]
[1767530221121,0.06583437,91138.0,91132.0,0.01097309]
[1767530221477,0.05947077,91137.0,91131.0,0.06583924]
[1767530221676,0.04849828,91137.0,91133.0,0.01097297]
[1767530222938,0.23041282,91141.0,91133.0,0.01097297]
[1767530222939,0.01097128,91147.0,91137.0,0.01243395]
[1767530223144,0.04849828,91146.0,91141.0,0.01097201]
[1767530224096,0.04849828,91146.0,91142.0,0.01097189]
[1767530224302,0.00019,91142.0,91139.0,0.05486073]
[1767530224444,0.05946968,91146.0,91141.0,0.01097201]
[1767530224647,0.05946968,91146.0,91119.0,0.02194931]
[1767530224648,0.0594698,91145.0,91130.0,0.2194657]
[1767530224849,0.0594698,91145.0,91139.0,0.01097225]
[1767530225065,0.04849828,91143.0,91139.0,0.01097225]
[1767530225268,0.04849828,91143.0,91097.0,0.1497]
[1767530225269,0.04849828,91143.0,91133.0,0.01097297]
[1767530225486,0.00019,91139.0,91137.0,0.0658344]
[1767530225672,0.04849828,91143.0,91138.0,0.01097237]
[1767530226075,0.04849828,91143.0,91138.0,0.0658339]
[1767530226271,0.04849828,91146.0,91141.0,0.01097201]
[1767530226502,0.04849828,91146.0,91143.0,0.000809]
[1767530226819,0.04849828,91146.0,91141.0,0.06583157]
[1767530227109,0.01097128,91147.0,91140.0,0.01097213]
[1767530227253,0.00019,91140.0,91139.0,0.01097225]
[1767530227451,0.01097164,91144.0,91139.0,0.01097225]
[1767530227692,0.01097164,91144.0,91138.0,0.05486182]
[1767530228005,0.01097164,91144.0,91138.0,0.06583419]
[1767530228204,0.0658292,91145.0,91139.0,0.01097225]
[1767530228410,0.06582781,91147.0,91140.0,0.01097213]
[1767530228587,0.04849828,91147.0,91142.0,0.01097189]
[1767530228905,0.04849828,91147.0,91141.0,0.05486001]
[1767530229108,0.04849828,91147.0,91138.0,0.21944691]
[1767530229514,0.05946956,91147.0,91141.0,0.01097201]
[1767530229897,0.01097128,91147.0,91141.0,0.01097201]
[1767530230249,0.21941613,91151.0,91141.0,0.01097201]
[1767530230250,0.01097056,91153.0,91147.0,0.00146145]
[1767530230381,0.01112152,91155.0,91150.0,0.01097092]
[1767530230585,0.0001512,91155.0,91150.0,0.04904851]
[1767530230832,0.01112152,91155.0,91150.0,0.04904851]
[1767530231283,0.01097056,91153.0,91147.0,0.01097128]
[1767530231484,0.01097044,91154.0,91148.0,0.01097116]
[1767530231920,0.01097056,91153.0,91147.0,0.06582725]
[1767530232121,0.06582494,91151.0,91145.0,0.04904851]
[1767530232334,0.01097104,91149.0,91145.0,0.04904851]
[1767530232927,0.06582583,91150.0,91145.0,0.04904851]
[1767530233137,0.01097092,91150.0,91145.0,0.04904851]
[1767530233988,0.01119292,91155.0,91146.0,0.0109714]
[1767530234200,0.0002226,91155.0,91152.0,0.01097068]
[1767530234416,0.0111696,91161.0,91154.0,0.04904851]
[1767530234417,0.01096972,91160.0,91154.0,0.04904851]
[1767530234655,0.01097008,91157.0,91154.0,0.04904851]
[1767530234811,0.06582089,91158.0,91151.0,0.0109708]
[1767530235026,0.01096984,91159.0,91151.0,0.06582455]
[1767530235233,0.06581883,91160.0,91153.0,0.01097056]
[1767530235548,0.06581883,91160.0,91154.0,0.01097044]
[1767530235747,0.0111696,91161.0,91155.0,0.06582165]
[1767530235748,0.0002,91161.0,91155.0,0.06582165]
[1767530235948,0.0002,91161.0,91160.0,0.00146145]
[1767530236150,0.0002,91161.0,91160.0,0.00046245]
[1767530236327,0.0002,91161.0,91159.0,0.04904851]
[1767530236763,0.01096912,91165.0,91161.0,0.04904851]
[1767530236961,0.01096912,91165.0,91161.0,0.04924851]
[1767530237401,0.06581355,91167.0,91161.0,0.04904851]
[1767530237872,0.06581355,91167.0,91161.0,0.04890545]
[1767530238405,0.06581149,91170.0,91167.0,0.000999]
[1767530238951,0.01096864,91169.0,91163.0,0.06001787]
[1767530239130,0.0001512,91173.0,91169.0,0.04904851]
[1767530239336,0.0001512,91173.0,91169.0,0.00046245]
[1767530239778,0.0001512,91173.0,91169.0,0.0604796]
[1767530240090,0.0001512,91173.0,91170.0,0.06581084]
[1767530240434,0.0001512,91173.0,91168.0,0.01096876]
[1767530240435,0.0001512,91173.0,91168.0,0.0548438]
[1767530240652,0.0001512,91173.0,91170.0,0.06581112]
[1767530241062,0.0001512,91173.0,91171.0,0.05484193]
[1767530241282,0.0001512,91173.0,91170.0,0.01096852]
[1767530241497,0.0001512,91173.0,91172.0,0.05484139]
[1767530241702,0.0001512,91173.0,91171.0,0.054842]
[1767530241860,0.00953754,91171.0,91169.0,0.01096864]
[1767530242059,2e-07,91173.0,91170.0,0.01096852]
[1767530242412,2e-07,91173.0,91172.0,0.04904851]
[1767530245610,2e-07,91173.0,91172.0,0.04889751]
[1767530245819,0.010969,91166.0,91157.0,0.01097008]
[1767530246030,0.06581962,91159.0,91152.0,0.01097068]
[1767530246240,0.0109696,91161.0,91154.0,0.01097044]
[1767530246450,0.06581819,91161.0,91154.0,0.01097044]
[1767530246653,0.06581819,91161.0,91153.0,0.08782332]
[1767530246833,0.01096984,91159.0,91153.0,0.022]
[1767530247319,0.0109702,91156.0,91153.0,0.022]
[1767530247529,0.06581951,91159.0,91156.0,0.000999]
[1767530247734,0.01096984,91159.0,91156.0,0.000999]
[1767530247942,0.01096984,91159.0,91153.0,0.03297056]
[1767530248361,0.01096984,91159.0,91153.0,0.022]
[1767530248858,0.01096984,91159.0,91153.0,0.03297056]
[1767530249074,0.01096996,91158.0,91153.0,0.022]
[1767530249530,0.01097008,91157.0,91153.0,0.022]
[1767530249732,0.06582002,91158.0,91153.0,0.022]
[1767530250590,0.01096996,91158.0,91153.0,0.022]
[1767530250785,0.06581995,91158.0,91153.0,0.022]
[1767530250976,0.06582061,91157.0,91153.0,0.022]
[1767530251181,0.01096996,91158.0,91153.0,0.022]
[1767530251400,0.06581993,91158.0,91153.0,0.022]
[1767530251607,0.0109702,91156.0,91153.0,0.022]
[1767530251839,0.01097056,91153.0,91150.0,0.00049417]
[1767530252057,0.05485403,91151.0,91150.0,1e-08]
[1767530253123,0.10404117,91151.0,91150.0,1e-08]
[1767530253591,0.01097056,91153.0,91150.0,1e-08]
[1767530253804,0.05485403,91151.0,91150.0,1e-08]
[1767530254010,0.05485361,91152.0,91150.0,1e-08]
[1767530254220,0.0658234,91153.0,91150.0,1e-08]
[1767530255736,0.01097056,91153.0,91150.0,1e-08]
[1767530257500,0.05485212,91155.0,91153.0,0.000999]
[1767530257932,0.01097044,91154.0,91150.0,1e-08]
[1767530259627,0.01097056,91153.0,91150.0,1e-08]
[1767530259826,0.00997156,91153.0,91150.0,1e-08]
[1767530260433,0.01097056,91153.0,91150.0,1e-08]
[1767530261436,0.0658234,91153.0,91150.0,1e-08]
[1767530261666,0.01097056,91153.0,91150.0,1e-08]
[1767530262826,0.06582392,91153.0,91150.0,1e-08]
[1767530263910,0.05485365,91152.0,91150.0,1e-08]
[1767530264085,0.09992793,91151.0,91150.0,1e-08]
[1767530264687,0.09992793,91151.0,91136.0,0.06583533]
[1767530264688,0.05486316,91136.0,91129.0,0.05486706]
[1767530264897,0.01097213,91140.0,91129.0,7.14e-05]
[1767530264898,0.01097273,91135.0,91129.0,7.14e-05]
[1767530265037,0.01097297,91133.0,91129.0,7.14e-05]
[1767530265394,0.06583808,91133.0,91129.0,7.14e-05]
[1767530265574,0.01097309,91132.0,91129.0,7.14e-05]
[1767530265777,0.06583808,91133.0,91129.0,7.14e-05]
[1767530265997,0.01097285,91134.0,91129.0,7.14e-05]
[1767530266201,0.01097273,91135.0,91129.0,0.01104485]
[1767530266410,0.06583573,91136.0,91131.0,0.01097321]
[1767530268318,0.06583604,91137.0,91131.0,0.01097321]
[1767530268620,0.01097261,91136.0,91130.0,0.06583985]
[1767530268921,0.01097261,91136.0,91131.0,0.01097321]
[1767530269325,0.01097261,91136.0,91130.0,0.06583985]
[1767530269619,0.01097273,91135.0,91129.0,0.06591161]
[1767530269826,0.01097261,91136.0,91130.0,0.01097333]
[1767530270277,0.06583357,91139.0,91131.0,0.01097321]
[1767530270693,0.05486356,91136.0,91130.0,0.01097333]
[1767530270881,0.01097261,91136.0,91131.0,0.01097321]
[1767530271146,0.06583525,91137.0,91131.0,0.01097321]
[1767530271347,0.01097249,91137.0,91132.0,0.01097309]
[1767530271552,0.01097261,91136.0,91131.0,0.01097321]
[1767530271759,0.06583433,91138.0,91133.0,0.01097297]
[1767530271964,0.01097225,91139.0,91133.0,0.01097297]
[1767530272399,0.01097225,91139.0,91133.0,0.06583753]
[1767530273199,0.06583391,91140.0,91133.0,0.06583753]
[1767530273394,0.06583391,91140.0,91134.0,0.01097285]
[1767530273620,0.01097225,91139.0,91133.0,0.06583753]
[1767530273823,0.01097225,91139.0,91134.0,0.01097285]
[1767530273964,0.01097225,91139.0,91133.0,0.06583753]
[1767530274314,0.01097213,91140.0,91134.0,0.06583683]
[1767530274529,0.01097309,91132.0,91129.0,7.14e-05]
[1767530275082,0.05486667,91130.0,91129.0,7.14e-05]
[1767530275285,0.05486665,91131.0,91129.0,7.14e-05]
[1767530275485,0.06583868,91132.0,91129.0,7.14e-05]
[1767530275726,0.01097297,91133.0,91129.0,7.14e-05]
[1767530275926,0.06583748,91134.0,91129.0,7.14e-05]
[1767530277067,0.06583694,91135.0,91129.0,0.06591186]
[1767530277293,0.01097249,91137.0,91132.0,0.01097309]
[1767530277751,0.06583439,91138.0,91132.0,0.01097309]
[1767530277980,0.01097213,91140.0,91135.0,0.01097273]
[1767530278209,0.01097213,91140.0,91135.0,0.05799299]
[1767530278455,0.0658322,91141.0,91135.0,0.05799299]
[1767530278634,0.01097213,91140.0,91135.0,0.05799299]
[1767530278857,0.01097213,91140.0,91135.0,0.04702026]
[1767530279097,0.01097213,91140.0,91135.0,0.05799299]
[1767530280531,0.0658322,91141.0,91135.0,0.05799299]
[1767530280714,0.01097213,91140.0,91135.0,0.04702026]
[1767530281158,0.01097213,91140.0,91135.0,0.05799299]
[1767530281369,0.01097225,91139.0,91135.0,0.04702026]
[1767530281581,0.01097213,91140.0,91135.0,0.05799299]
[1767530282110,0.0658322,91141.0,91135.0,0.05799299]
[1767530282530,0.06583158,91142.0,91137.0,0.04693748]
[1767530282943,0.01097189,91142.0,91137.0,0.05790997]
[1767530283146,0.01097189,91142.0,91137.0,0.04693748]
[1767530285612,0.01097176,91143.0,91137.0,0.06583463]
[1767530287126,0.01097189,91142.0,91137.0,0.01097249]
[1767530287748,0.06583135,91142.0,91136.0,0.06583565]
[1767530287981,0.06583135,91142.0,91136.0,0.05791009]
[1767530288146,0.01097189,91142.0,91137.0,0.01097249]
[1767530288349,0.06583074,91143.0,91137.0,0.01097249]
[1767530289148,0.01097189,91142.0,91136.0,0.11277293]
[1767530289333,0.01097189,91142.0,91136.0,0.06583545]
[1767530289981,0.06583074,91143.0,91137.0,0.01097249]
[1767530290275,0.01097189,91142.0,91136.0,0.06583545]
[1767530290476,0.01097189,91142.0,91137.0,0.01097249]
[1767530291380,0.01097189,91142.0,91136.0,0.06583545]
[1767530291791,0.01097189,91142.0,91137.0,0.01097249]
[1767530291999,0.01097189,91142.0,91136.0,0.06583545]
[1767530292909,0.01097189,91142.0,91137.0,0.01097249]
[1767530293257,0.01097189,91142.0,91136.0,0.06583545]
[1767530293855,0.01097189,91142.0,91137.0,0.01097249]
[1767530294378,0.0109714,91146.0,91135.0,0.06583638]
[1767530294379,0.0109708,91151.0,91143.0,0.01097176]
[1767530294579,0.03293092,91150.0,91144.0,0.01097164]
[1767530294782,0.04590308,91149.0,91144.0,0.01097164]
[1767530295027,0.05687412,91149.0,91142.0,0.02754243]
[1767530295198,0.05687412,91149.0,91143.0,0.0658305]
[1767530295400,0.05687412,91149.0,91144.0,0.01097164]
[1767530295616,0.04590308,91149.0,91144.0,0.06582977]
[1767530295815,0.03293092,91150.0,91144.0,0.06582977]
[1767530296299,0.01097104,91149.0,91143.0,0.0658305]
[1767530296493,0.08778567,91150.0,91144.0,0.01097164]
[1767530297532,0.01097104,91149.0,91144.0,0.01097164]
[1767530297733,0.01097104,91149.0,91143.0,0.0658305]
[1767530297936,0.01097104,91149.0,91144.0,0.01097164]
[1767530298287,0.01097104,91149.0,91143.0,0.0658305]
[1767530298749,0.08778567,91150.0,91144.0,0.01097164]
[1767530298960,0.02196,91150.0,91144.0,0.01097164]
[1767530299161,0.00049415,91157.0,91154.0,0.04693748]
[1767530299363,0.00049415,91157.0,91150.0,0.01097092]
[1767530299364,0.0658189,91160.0,91157.0,0.04693748]
[1767530299567,0.01096972,91160.0,91157.0,0.04593848]
[1767530299772,0.01096936,91163.0,91157.0,0.04593848]
[1767530299975,0.06581737,91162.0,91155.0,0.01097032]
[1767530300150,0.0109696,91161.0,91155.0,0.06582183]
[1767530300351,0.0109696,91161.0,91153.0,0.23038154]
[1767530300352,0.01953754,91155.0,91153.0,0.05485265]
[1767530300553,0.0109696,91161.0,91154.0,0.06582266]
[1767530300755,0.01096972,91160.0,91155.0,0.01097032]
[1767530301120,0.01096972,91160.0,91154.0,0.06582266]
[1767530301364,0.01096972,91160.0,91155.0,0.01097032]
[1767530302704,0.01096972,91160.0,91154.0,0.06582266]
[1767530303693,0.01096984,91159.0,91152.0,0.065824]
[1767530303923,0.06581906,91159.0,91154.0,0.04693748]
[1767530304153,0.01096984,91159.0,91154.0,0.04693748]
[1767530304358,0.01096972,91160.0,91154.0,0.05790792]
[1767530304558,0.06581875,91161.0,91156.0,0.04693748]
[1767530305076,0.01096972,91160.0,91156.0,0.04693748]
[1767530305747,0.0109696,91161.0,91156.0,0.05790768]
[1767530305981,0.01096936,91163.0,91157.0,0.05790756]
[1767530306151,0.05484656,91164.0,91157.0,0.05790756]
[1767530306152,0.01096924,91164.0,91158.0,0.05790744]
[1767530306399,0.06581528,91165.0,91159.0,0.01096984]
[1767530307323,0.01096924,91164.0,91158.0,0.11275671]
[1767530307781,0.06581528,91165.0,91164.0,0.04793648]
[1767530308126,0.01096864,91169.0,91164.0,0.04793648]
[1767530308326,0.01096876,91168.0,91163.0,0.01096936]
[1767530308536,0.06581303,91169.0,91164.0,0.04693748]
[1767530309418,0.01096864,91169.0,91164.0,0.04693748]
[1767530310252,0.08777123,91170.0,91165.0,0.01096912]
[1767530310253,0.03292852,91170.0,91165.0,0.01096912]
[1767530310410,0.03292852,91170.0,91164.0,0.11275282]
[1767530310411,0.03292852,91170.0,91166.0,0.04761282]
[1767530310609,0.03292852,91170.0,91164.0,0.06581534]
[1767530310806,0.01096864,91169.0,91164.0,0.01096924]
[1767530311018,0.03292852,91170.0,91164.0,0.01096924]
[1767530311019,0.03292852,91170.0,91165.0,0.01096912]
[1767530311468,0.03292852,91170.0,91164.0,0.01096924]
[1767530311632,0.03292852,91170.0,91165.0,0.01096912]
[1767530311832,0.01096864,91169.0,91164.0,0.01096924]
[1767530312043,0.08777115,91170.0,91164.0,0.01096924]
[1767530312227,0.03292852,91170.0,91165.0,0.01096912]
[1767530312427,0.03292852,91170.0,91166.0,0.04761282]
[1767530313893,0.01096864,91169.0,91166.0,0.04761282]
[1767530314214,0.08777113,91170.0,91166.0,0.04761282]
[1767530314570,0.01096864,91169.0,91166.0,0.04761282]
[1767530314752,0.08777113,91170.0,91166.0,0.04761282]
[1767530314952,0.06581201,91169.0,91166.0,0.04761282]
[1767530315561,0.06581232,91169.0,91166.0,0.04761282]
[1767530316533,0.02196,91170.0,91166.0,0.04761282]
[1767530316734,0.03292852,91170.0,91165.0,0.01096912]
[1767530317169,0.02196,91170.0,91165.0,0.06581472]
[1767530317371,0.02196,91170.0,91153.0,0.21941107]
[1767530317372,0.01096755,91178.0,91170.0,0.000999]
[1767530317574,0.01096755,91178.0,91169.0,0.06581176]
[1767530317575,0.06588616,91176.0,91169.0,0.06581176]
[1767530317747,0.01096791,91175.0,91169.0,0.06581176]
[1767530317985,0.01096791,91175.0,91170.0,0.01096852]
[1767530318206,0.01096791,91175.0,91169.0,0.06581176]
[1767530318408,0.01096791,91175.0,91170.0,0.01096852]
[1767530318680,0.01096791,91175.0,91171.0,0.04932781]
[1767530319237,0.0110471,91176.0,91171.0,0.06029621]
[1767530319431,0.01096767,91177.0,91172.0,0.06029608]
[1767530319660,0.01096791,91175.0,91172.0,0.04932781]
[1767530319860,0.05483845,91177.0,91172.0,0.04932781]
[1767530320087,0.01096779,91176.0,91172.0,0.04932781]
[1767530320508,0.01096815,91173.0,91170.0,0.04932781]
[1767530320710,0.05484204,91171.0,91166.0,0.02196]
[1767530320914,0.01096864,91169.0,91166.0,0.02203931]
[1767530321110,0.06581223,91169.0,91166.0,0.02203931]
[1767530321315,0.05484409,91168.0,91166.0,0.02203931]
[1767530321516,0.0658119,91169.0,91166.0,7.931e-05]
[1767530321728,0.01096876,91168.0,91161.0,0.02196]
[1767530321924,7.931e-05,91166.0,91162.0,0.06581663]
[1767530322326,0.01096876,91168.0,91163.0,0.01096936]
[1767530323006,0.01096876,91168.0,91162.0,0.06581663]
[1767530323354,0.01096864,91169.0,91163.0,0.05484675]
[1767530323559,0.01096864,91169.0,91164.0,0.01096924]
[1767530323755,0.06581222,91170.0,91164.0,0.01096924]
[1767530324564,0.01096864,91169.0,91163.0,0.01096936]
[1767530324987,0.01096864,91169.0,91162.0,0.06581663]
[1767530325393,0.01096876,91168.0,91162.0,0.06581663]
[1767530325797,0.01096876,91168.0,91162.0,0.02242926]
[1767530326223,0.01096888,91167.0,91161.0,0.02196]
[1767530326424,0.010969,91166.0,91161.0,0.02196]
[1767530326666,0.05484566,91165.0,91161.0,0.00242246]
[1767530327011,0.01096924,91164.0,91161.0,0.00242246]
[1767530327213,0.01096912,91165.0,91161.0,0.00242246]
[1767530327613,0.06581508,91165.0,91161.0,0.00256186]
[1767530327851,0.05484624,91164.0,91161.0,0.00256186]
[1767530328029,0.01096924,91164.0,91161.0,0.00256186]
[1767530328463,0.05484718,91163.0,91161.0,0.00256186]
[1767530329241,0.05484718,91163.0,91161.0,0.0001394]
[1767530329457,0.05484741,91162.0,91161.0,0.0001394]
[1767530329830,0.05484718,91163.0,91161.0,0.0001394]
[1767530330381,0.01096912,91165.0,91161.0,0.0001394]
[1767530330587,0.06581523,91165.0,91161.0,0.0001394]
[1767530330969,0.05484715,91163.0,91161.0,0.0001394]
[1767530332144,0.06581564,91164.0,91161.0,0.0001394]
[1767530332527,0.10317219,91162.0,91161.0,1e-08]
[1767530332968,0.10317219,91162.0,91142.0,0.21943773]
[1767530332969,0.05485579,91149.0,91145.0,0.0001528]
[1767530333143,0.05485697,91147.0,91145.0,0.0002242]
[1767530333558,0.01097225,91139.0,91132.0,0.06583741]
[1767530333755,0.01097189,91142.0,91139.0,0.000999]
[1767530334135,0.01097189,91142.0,91137.0,0.01097249]
[1767530334136,0.04133143,91142.0,91137.0,0.01097249]
[1767530334383,0.0658308,91143.0,91137.0,0.01097249]
[1767530334582,0.01097176,91143.0,91137.0,0.01097249]
[1767530334760,0.06583079,91143.0,91137.0,0.01097249]
[1767530335326,0.01097189,91142.0,91137.0,0.01097249]
[1767530335528,0.01097189,91142.0,91136.0,0.06583543]
[1767530335833,0.06583063,91143.0,91137.0,0.01097249]
[1767530336385,0.06583063,91143.0,91136.0,0.01097261]
[1767530336386,0.01097189,91142.0,91136.0,0.01097261]
[1767530336605,0.01097189,91142.0,91135.0,0.06583635]
[1767530336606,0.05486016,91141.0,91135.0,0.01097273]
[1767530336815,0.01097201,91141.0,91135.0,0.01097273]
[1767530337396,0.01097213,91140.0,91132.0,0.06583797]
[1767530337762,0.01097213,91140.0,91133.0,0.01097297]
[1767530337908,0.01097225,91139.0,91133.0,0.01097297]
[1767530338285,0.01097237,91138.0,91132.0,0.06583797]
[1767530338487,0.01097249,91137.0,91131.0,0.06583918]
[1767530338692,0.01097237,91138.0,91132.0,0.06583853]
[1767530338863,0.0658335,91139.0,91133.0,0.01097297]
[1767530339025,0.0658335,91139.0,91133.0,0.01092873]
[1767530339231,0.01097237,91138.0,91132.0,0.06583853]
[1767530339434,0.01097237,91138.0,91132.0,0.01097309]
[1767530339649,0.01097213,91140.0,91134.0,0.01097285]
[1767530340859,0.01097225,91139.0,91133.0,0.0658377]
[1767530341032,0.01097201,91141.0,91139.0,0.000999]
[1767530341258,0.01097201,91141.0,91135.0,0.01097273]
[1767530341690,0.05485647,91147.0,91138.0,0.05486125]